fUST/lending_fUST_20260605
["ID","MTS","AMOUNT","RATE_DAILY","PERIOD"]
[424126613,1780605053000,-151.0,0.00019548,2]
[424126615,1780605053000,-945.137985,0.00019548,2]
[424126617,1780605053000,-945.137985,0.00019548,2]
[424126638,1780605053000,-5895.96888,0.00019548,2]
[424126596,1780605053000,-151.0,0.00019548,2]
[424126600,1780605053000,-151.0,0.00019548,2]
[424126602,1780605053000,-175.664076,0.00019548,2]
[424126603,1780605053000,-175.664076,0.00019548,2]
[424126621,1780605053000,-945.137985,0.00019548,2]
[424126632,1780605053000,-231.544,0.00019548,2]
[424126634,1780605053000,-231.544,0.00019548,2]
[424126636,1780605053000,-231.544,0.00019548,2]
[424126598,1780605053000,-151.0,0.00019548,2]
[424126648,1780605053000,-151.0,0.00019548,2]
[424126670,1780605053000,-224.207156,0.00019548,2]
[424126664,1780605053000,-151.0,0.00019548,2]
[424126748,1780605053000,-500.0,0.0001727,2]
[424126746,1780605053000,-500.0,0.00016996,2]
[424126738,1780605053000,-500.0,0.000159,2]
[424126755,1780605053000,-500.0,0.00017818,2]
[424126752,1780605053000,-502.49472564,0.00017504,2]
[424126756,1780605053000,-307.94111358,0.00018092,2]
[424126754,1780605053000,-500.0,0.00017544,2]
[424126749,1780605053000,-500.0,0.00017404,2]
[424126769,1780605053000,-500.0,0.00017678,2]
[424126776,1780605053000,-500.0,0.00018366,2]
[424126773,1780605053000,-192.05888642,0.00018092,2]
[424126778,1780605053000,-500.0,0.0001864,2]
[424126780,1780605053000,-500.0,0.00018913,2]
[424126784,1780605053000,-151.02129235,0.00019187,2]
[424126782,1780605053000,-1000.0,0.00019,2]
[424126668,1780605053000,-151.0,0.00019548,2]
[424126771,1780605053000,-500.0,0.00017952,2]
[424126742,1780605053000,-525.02,0.00016448,2]
[424126684,1780605053000,-3187.017102,0.00019548,2]
[424126744,1780605053000,-500.0,0.00016722,2]
[424126672,1780605053000,-3187.017102,0.00019548,2]
[424126674,1780605053000,-151.0,0.00019548,2]
[424126689,1780605053000,-3187.017102,0.00019548,2]
[424126687,1780605053000,-224.207156,0.00019548,2]
[424126691,1780605053000,-238.893978,0.00019548,2]
[424126693,1780605053000,-151.0,0.00019548,2]
[424126695,1780605053000,-3187.017102,0.00019548,2]
[424126686,1780605053000,-151.0,0.00019548,2]
[424126740,1780605053000,-500.0,0.00016174,2]
[424126682,1780605053000,-224.207156,0.00019548,2]
[424126699,1780605053000,-756.541922,0.00019548,2]
[424126697,1780605053000,-756.541922,0.00019548,2]
[424126701,1780605053000,-756.541922,0.00019548,2]
[424126703,1780605053000,-756.541922,0.00019548,2]
[424126705,1780605053000,-553981.68032944,0.0001957,2]
[424126719,1780605053000,-837.82014782,0.0001957,2]
[424126721,1780605053000,-1268.88875421,0.0001957,2]
[424126680,1780605053000,-224.207156,0.00019548,2]
[424128667,1780605151000,151.98,8.205e-05,2]
[424128745,1780606232000,-300.0,0.00014331,2]
[424128741,1780606232000,-1000.0,0.00013699,2]
[424128738,1780606232000,-244.40879847,0.00013122,7]
[424128740,1780606232000,-1200.0,0.00013698,2]
[424128737,1780606232000,-244.40879847,0.00012865,2]
[424128739,1780606232000,-244.40879847,0.00013508,14]
[424128736,1780606232000,-151.07,0.00012,2]
[424128734,1780606232000,-16.87700188,0.00011171,2]
[424128735,1780606232000,-151.06,0.00012,2]
[424128732,1780606232000,-5000.0,0.00010839,2]
[424128744,1780606232000,-300.0,0.00014331,2]
[424128733,1780606232000,-134.12299812,0.00011171,2]
[424128731,1780606232000,-321.81384203,0.00010731,2]
[424128742,1780606232000,-592.712849,0.00013699,2]
[424128750,1780606232000,-408.9907034,0.00014704,2]
[424128743,1780606232000,-300.0,0.00014331,2]
[424128747,1780606232000,-912.385138,0.00014334,2]
[424128754,1780606232000,-500.0,0.000148,2]
[424128768,1780606232000,-101.44625018,0.000148,2]
[424128763,1780606232000,-511.86,0.000148,2]
[424128766,1780606232000,-171.9726172,0.000148,2]
[424128765,1780606232000,-500.0,0.000148,2]
[424128761,1780606232000,-237.4281524,0.000148,2]
[424128758,1780606232000,-262.5718476,0.000148,2]
[424128767,1780606232000,-578.0073828,0.000148,2]
[424128753,1780606232000,-866.85,0.000148,2]
[424128751,1780606232000,-203.713,0.00014794,2]
[424128746,1780606232000,-1200.0,0.00014332,2]
[424128749,1780606232000,-67.53606905,0.00014701,2]
[424128752,1780606232000,-151.06,0.000148,2]
[424128748,1780606232000,-4668.74450907,0.00014701,2]
[424128756,1780606232000,-1659.57,0.000148,2]
[424128987,1780606238000,-500.0,0.000148,2]
[424128985,1780606238000,-276.96308037,0.000148,2]
[424128982,1780606238000,-500.0,0.000148,2]
[424128984,1780606238000,-500.0,0.000148,2]
[424128983,1780606238000,-532.72182746,0.000148,2]
[424128981,1780606238000,-500.0,0.000148,2]
[424128975,1780606238000,-500.0,0.000148,2]
[424128978,1780606238000,-500.0,0.000148,2]
[424128986,1780606238000,-229.70541387,0.000148,2]
[424128979,1780606238000,-500.0,0.000148,2]
[424128976,1780606238000,-500.0,0.000148,2]
[424128974,1780606238000,-398.55374982,0.000148,2]
[424128988,1780606238000,-500.0,0.000148,2]
[424128980,1780606238000,-500.0,0.000148,2]
[424128998,1780606238000,-500.0,0.000148,2]
[424128977,1780606238000,-500.0,0.000148,2]
[424128989,1780606238000,-500.0,0.000148,2]
[424128991,1780606238000,-500.0,0.000148,2]
[424129005,1780606238000,-500.0,0.000148,2]
[424129001,1780606238000,-500.0,0.000148,2]
[424129002,1780606238000,-500.0,0.000148,2]
[424128999,1780606238000,-500.0,0.000148,2]
[424129003,1780606238000,-500.0,0.000148,2]
[424129000,1780606238000,-500.0,0.000148,2]
[424129004,1780606238000,-500.0,0.000148,2]
[424128996,1780606238000,-500.0,0.000148,2]
[424128997,1780606238000,-500.0,0.000148,2]
[424128992,1780606238000,-500.0,0.000148,2]
[424128994,1780606238000,-500.0,0.000148,2]
[424128990,1780606238000,-500.0,0.000148,2]
[424128995,1780606238000,-204.55110837,0.000148,2]
[424128993,1780606238000,-500.0,0.000148,2]
[424129047,1780606239000,-500.0,0.00014801,2]
[424129042,1780606239000,-500.0,0.00014801,2]
[424129051,1780606239000,-500.0,0.00014801,2]
[424129049,1780606239000,-500.0,0.00014801,2]
[424129045,1780606239000,-340.78338378,0.00014801,2]
[424129043,1780606239000,-500.0,0.00014801,2]
[424129044,1780606239000,-500.43037653,0.00014801,2]
[424129050,1780606239000,-500.0,0.00014801,2]
[424129048,1780606239000,-500.0,0.00014801,2]
[424129040,1780606239000,-500.0,0.00014801,2]
[424129046,1780606239000,-500.0,0.00014801,2]
[424129053,1780606239000,-500.0,0.00014801,2]
[424129063,1780606239000,-500.0,0.00014801,2]
[424129054,1780606239000,-500.0,0.00014801,2]
[424129055,1780606239000,-500.0,0.00014801,2]
[424129052,1780606239000,-500.0,0.00014801,2]
[424129056,1780606239000,-500.0,0.00014801,2]
[424129061,1780606239000,-500.0,0.00014801,2]
[424129058,1780606239000,-500.0,0.00014801,2]
[424129041,1780606239000,-500.0,0.00014801,2]
[424129060,1780606239000,-500.0,0.00014801,2]
[424129059,1780606239000,-190.12949262,0.00014801,2]
[424129062,1780606239000,-500.0,0.00014801,2]
[424129057,1780606239000,-500.0,0.00014801,2]
[424129065,1780606239000,-500.0,0.00014801,2]
[424129067,1780606239000,-500.0,0.00014801,2]
[424129068,1780606239000,-500.0,0.00014801,2]
[424129072,1780606239000,-500.0,0.00014802,2]
[424129064,1780606239000,-500.0,0.00014801,2]
[424129039,1780606239000,-500.0,0.00014801,2]
[424129027,1780606239000,-500.0,0.000148,2]
[424129032,1780606239000,-500.0,0.00014801,2]
[424129073,1780606239000,-615.98,0.00014802,2]
[424129010,1780606239000,-500.0,0.000148,2]
[424129011,1780606239000,-219.71241289,0.000148,2]
[424129007,1780606239000,-500.0,0.000148,2]
[424129006,1780606239000,-500.0,0.000148,2]
[424129008,1780606239000,-500.0,0.000148,2]
[424129009,1780606239000,-500.0,0.000148,2]
[424129012,1780606239000,-500.0,0.000148,2]
[424129014,1780606239000,-500.0,0.000148,2]
[424129020,1780606239000,-500.0,0.000148,2]
[424129021,1780606239000,-500.0,0.000148,2]
[424129017,1780606239000,-500.0,0.000148,2]
[424129023,1780606239000,-500.0,0.000148,2]
[424129019,1780606239000,-500.0,0.000148,2]
[424129024,1780606239000,-500.0,0.000148,2]
[424129015,1780606239000,-500.0,0.000148,2]
[424129022,1780606239000,-500.0,0.000148,2]
[424129018,1780606239000,-500.0,0.000148,2]
[424129026,1780606239000,-195.90233605,0.000148,2]
[424129038,1780606239000,-500.0,0.00014801,2]
[424129028,1780606239000,-500.0,0.000148,2]
[424129029,1780606239000,-500.0,0.000148,2]
[424129035,1780606239000,-500.0,0.00014801,2]
[424129030,1780606239000,-500.0,0.000148,2]
[424129025,1780606239000,-500.0,0.000148,2]
[424129037,1780606239000,-500.0,0.00014801,2]
[424129036,1780606239000,-500.0,0.00014801,2]
[424129034,1780606239000,-500.0,0.00014801,2]
[424129031,1780606239000,-500.0,0.00014801,2]
[424129033,1780606239000,-500.0,0.00014801,2]
[424129076,1780606239000,-517.3,0.00014802,2]
[424129013,1780606239000,-500.0,0.000148,2]
[424129077,1780606239000,-500.0,0.00014802,2]
[424129107,1780606239000,-500.0,0.00014803,2]
[424129118,1780606239000,-500.0,0.00014803,2]
[424129117,1780606239000,-500.0,0.00014803,2]
[424129114,1780606239000,-500.0,0.00014803,2]
[424129112,1780606239000,-957.06,0.00014803,2]
[424129108,1780606239000,-500.0,0.00014803,2]
[424129110,1780606239000,-500.0,0.00014803,2]
[424129109,1780606239000,-577.59,0.00014803,2]
[424129113,1780606239000,-500.0,0.00014803,2]
[424129116,1780606239000,-500.0,0.00014803,2]
[424129111,1780606239000,-500.0,0.00014803,2]
[424129115,1780606239000,-587.97132463,0.00014803,2]
[424129119,1780606239000,-500.0,0.00014803,2]
[424129123,1780606239000,-500.0,0.00014803,2]
[424129106,1780606239000,-500.0,0.00014803,2]
[424129127,1780606239000,-500.0,0.00014803,2]
[424129126,1780606239000,-625.0,0.00014803,2]
[424129122,1780606239000,-500.0,0.00014803,2]
[424129130,1780606239000,-500.48421303,0.00014803,2]
[424129125,1780606239000,-500.0,0.00014803,2]
[424129120,1780606239000,-500.0,0.00014803,2]
[424129124,1780606239000,-500.0,0.00014803,2]
[424129129,1780606239000,-500.0,0.00014803,2]
[424129128,1780606239000,-500.0,0.00014803,2]
[424129132,1780606239000,-500.0,0.00014803,2]
[424129131,1780606239000,-500.0,0.00014803,2]
[424129133,1780606239000,-17646.95,0.00014803,2]
[424129135,1780606239000,-500.0,0.00014803,2]
[424129134,1780606239000,-500.0,0.00014803,2]
[424129069,1780606239000,-500.0,0.00014801,2]
[424129121,1780606239000,-500.0,0.00014803,2]
[424129102,1780606239000,-500.0,0.00014803,2]
[424129016,1780606239000,-500.0,0.000148,2]
[424129098,1780606239000,-220.44475696,0.00014802,2]
[424129100,1780606239000,-500.0,0.00014803,2]
[424129070,1780606239000,-500.0,0.00014801,2]
[424129071,1780606239000,-500.0,0.00014802,2]
[424129075,1780606239000,-2275.6,0.00014802,2]
[424129074,1780606239000,-500.0,0.00014802,2]
[424129079,1780606239000,-2068.89,0.00014802,2]
[424129089,1780606239000,-500.0,0.00014802,2]
[424129090,1780606239000,-500.0,0.00014802,2]
[424129091,1780606239000,-500.0,0.00014802,2]
[424129078,1780606239000,-1194.0,0.00014802,2]
[424129080,1780606239000,-500.0,0.00014802,2]
[424129082,1780606239000,-500.0,0.00014802,2]
[424129087,1780606239000,-1621.65,0.00014802,2]
[424129081,1780606239000,-500.0,0.00014802,2]
[424129084,1780606239000,-500.0,0.00014802,2]
[424129066,1780606239000,-500.0,0.00014801,2]
[424129083,1780606239000,-1456.66,0.00014802,2]
[424129101,1780606239000,-500.0,0.00014803,2]
[424129085,1780606239000,-500.0,0.00014802,2]
[424129105,1780606239000,-500.0,0.00014803,2]
[424129099,1780606239000,-1925.42,0.00014802,2]
[424129093,1780606239000,-500.0,0.00014802,2]
[424129103,1780606239000,-500.0,0.00014803,2]
[424129096,1780606239000,-500.75612095,0.00014802,2]
[424129104,1780606239000,-500.0,0.00014803,2]
[424129094,1780606239000,-500.0,0.00014802,2]
[424129095,1780606239000,-996.63,0.00014802,2]
[424129092,1780606239000,-1066.57,0.00014802,2]
[424129088,1780606239000,-500.0,0.00014802,2]
[424129086,1780606239000,-235.39220402,0.00014802,2]
[424129097,1780606239000,-655.22,0.00014802,2]
[424129182,1780606240000,-500.0,0.00014804,2]
[424129170,1780606240000,-500.0,0.00014804,2]
[424129179,1780606240000,-500.0,0.00014804,2]
[424129171,1780606240000,-500.30987034,0.00014804,2]
[424129175,1780606240000,-500.0,0.00014804,2]
[424129178,1780606240000,-500.0,0.00014804,2]
[424129177,1780606240000,-500.0,0.00014804,2]
[424129181,1780606240000,-500.0,0.00014804,2]
[424129172,1780606240000,-500.0,0.00014804,2]
[424129174,1780606240000,-500.0,0.00014804,2]
[424129180,1780606240000,-500.0,0.00014804,2]
[424129173,1780606240000,-500.0,0.00014804,2]
[424129176,1780606240000,-500.0,0.00014804,2]
[424129195,1780606240000,-504.89406461,0.00014804,2]
[424129187,1780606240000,-500.0,0.00014804,2]
[424129188,1780606240000,-500.46082791,0.00014804,2]
[424129196,1780606240000,-500.0,0.00014804,2]
[424129185,1780606240000,-500.0,0.00014804,2]
[424129183,1780606240000,-500.0,0.00014804,2]
[424129190,1780606240000,-500.0,0.00014804,2]
[424129189,1780606240000,-500.0,0.00014804,2]
[424129186,1780606240000,-500.0,0.00014804,2]
[424129193,1780606240000,-758.34,0.00014804,2]
[424129192,1780606240000,-500.0,0.00014804,2]
[424129191,1780606240000,-500.0,0.00014804,2]
[424129198,1780606240000,-500.0,0.00014804,2]
[424129166,1780606240000,-500.0,0.00014804,2]
[424129209,1780606240000,-500.0,0.00014804,2]
[424129184,1780606240000,-500.0,0.00014804,2]
[424129163,1780606240000,-300.55977937,0.00014804,2]
[424129149,1780606240000,-500.0,0.00014803,2]
[424129164,1780606240000,-500.0,0.00014804,2]
[424129142,1780606240000,-500.0,0.00014803,2]
[424129143,1780606240000,-500.0,0.00014803,2]
[424129136,1780606240000,-500.0,0.00014803,2]
[424129138,1780606240000,-500.0,0.00014803,2]
[424129140,1780606240000,-500.52332908,0.00014803,2]
[424129137,1780606240000,-500.0,0.00014803,2]
[424129139,1780606240000,-500.0,0.00014803,2]
[424129141,1780606240000,-198.08732654,0.00014803,2]
[424129152,1780606240000,-500.0,0.00014804,2]
[424129153,1780606240000,-200.43740135,0.00014804,2]
[424129154,1780606240000,-504.86973444,0.00014804,2]
[424129150,1780606240000,-500.0,0.00014804,2]
[424129155,1780606240000,-500.0,0.00014804,2]
[424129144,1780606240000,-500.0,0.00014803,2]
[424129165,1780606240000,-271.54851605,0.00014804,2]
[424129145,1780606240000,-500.0,0.00014803,2]
[424129147,1780606240000,-529.26,0.00014803,2]
[424129208,1780606240000,-500.0,0.00014804,2]
[424129148,1780606240000,-500.0,0.00014803,2]
[424129151,1780606240000,-500.0,0.00014804,2]
[424129157,1780606240000,-500.0,0.00014804,2]
[424129167,1780606240000,-500.0,0.00014804,2]
[424129168,1780606240000,-500.0,0.00014804,2]
[424129169,1780606240000,-500.0,0.00014804,2]
[424129158,1780606240000,-503.95502753,0.00014804,2]
[424129156,1780606240000,-500.0,0.00014804,2]
[424129159,1780606240000,-522.81183892,0.00014804,2]
[424129161,1780606240000,-364.36224229,0.00014804,2]
[424129160,1780606240000,-500.0,0.00014804,2]
[424129162,1780606240000,-500.0,0.00014804,2]
[424129146,1780606240000,-2548.79,0.00014803,2]
[424129197,1780606240000,-500.0,0.00014804,2]
[424129194,1780606240000,-500.0,0.00014804,2]
[424129199,1780606240000,-500.0,0.00014804,2]
[424129248,1780606240000,-500.0,0.00014804,2]
[424129247,1780606240000,-500.0,0.00014804,2]
[424129235,1780606240000,-500.0,0.00014804,2]
[424129249,1780606240000,-241.62681366,0.000149,2]
[424129250,1780606240000,-912.385138,0.00014938,2]
[424129242,1780606240000,-500.0,0.00014804,2]
[424129240,1780606240000,-1164.47,0.00014804,2]
[424129245,1780606240000,-500.0,0.00014804,2]
[424129239,1780606240000,-500.0,0.00014804,2]
[424129237,1780606240000,-500.0,0.00014804,2]
[424129244,1780606240000,-500.0,0.00014804,2]
[424129251,1780606240000,-408.99070336,0.00014978,2]
[424129252,1780606240000,-1680.0,0.00015067,2]
[424129254,1780606240000,-866.85,0.00015074,2]
[424129255,1780606240000,-156.2065752,0.00015074,2]
[424129253,1780606240000,-175.30609,0.00015068,2]
[424129256,1780606240000,-1659.57,0.00015074,2]
[424129264,1780606240000,-500.0,0.00015075,2]
[424129263,1780606240000,-500.0,0.00015075,2]
[424129260,1780606240000,-500.0,0.00015074,2]
[424129258,1780606240000,-511.86,0.00015074,2]
[424129262,1780606240000,-500.0,0.00015075,2]
[424129261,1780606240000,-500.0,0.00015074,2]
[424129257,1780606240000,-500.0,0.00015074,2]
[424129259,1780606240000,-749.98,0.00015074,2]
[424129266,1780606240000,-232.86495608,0.00015075,2]
[424129267,1780606240000,-500.0,0.00015075,2]
[424129200,1780606240000,-500.0,0.00014804,2]
[424129268,1780606240000,-500.0,0.00015075,2]
[424129246,1780606240000,-1051.46,0.00014804,2]
[424129236,1780606240000,-500.0,0.00014804,2]
[424129265,1780606240000,-502.40738991,0.00015075,2]
[424129232,1780606240000,-485.83997625,0.00014804,2]
[424129233,1780606240000,-440.54017475,0.00014804,2]
[424129204,1780606240000,-247.96550589,0.00014804,2]
[424129201,1780606240000,-579.72,0.00014804,2]
[424129205,1780606240000,-832.53,0.00014804,2]
[424129202,1780606240000,-500.0,0.00014804,2]
[424129203,1780606240000,-500.0,0.00014804,2]
[424129207,1780606240000,-500.0,0.00014804,2]
[424129221,1780606240000,-500.0,0.00014804,2]
[424129211,1780606240000,-500.0,0.00014804,2]
[424129212,1780606240000,-500.0,0.00014804,2]
[424129222,1780606240000,-500.0,0.00014804,2]
[424129210,1780606240000,-500.0,0.00014804,2]
[424129213,1780606240000,-500.0,0.00014804,2]
[424129219,1780606240000,-500.0,0.00014804,2]
[424129214,1780606240000,-500.0,0.00014804,2]
[424129206,1780606240000,-500.0,0.00014804,2]
[424129216,1780606240000,-500.0,0.00014804,2]
[424129215,1780606240000,-500.0,0.00014804,2]
[424129230,1780606240000,-500.0,0.00014804,2]
[424129227,1780606240000,-500.0,0.00014804,2]
[424129228,1780606240000,-500.0,0.00014804,2]
[424129229,1780606240000,-500.0,0.00014804,2]
[424129226,1780606240000,-500.0,0.00014804,2]
[424129231,1780606240000,-3143.61,0.00014804,2]
[424129224,1780606240000,-500.0,0.00014804,2]
[424129234,1780606240000,-600.85,0.00014804,2]
[424129218,1780606240000,-500.0,0.00014804,2]
[424129217,1780606240000,-500.0,0.00014804,2]
[424129225,1780606240000,-500.0,0.00014804,2]
[424129223,1780606240000,-512.35,0.00014804,2]
[424129220,1780606240000,-235.59086923,0.00014804,2]
[424129312,1780606241000,-500.0,0.00015077,2]
[424129302,1780606241000,-500.0,0.00015076,2]
[424129303,1780606241000,-1621.65,0.00015076,2]
[424129305,1780606241000,-500.0,0.00015076,2]
[424129304,1780606241000,-500.0,0.00015076,2]
[424129313,1780606241000,-500.0,0.00015077,2]
[424129308,1780606241000,-996.63,0.00015076,2]
[424129309,1780606241000,-655.22,0.00015076,2]
[424129311,1780606241000,-500.0,0.00015077,2]
[424129307,1780606241000,-500.0,0.00015076,2]
[424129306,1780606241000,-1066.57,0.00015076,2]
[424129300,1780606241000,-1456.66,0.00015076,2]
[424129275,1780606241000,-500.0,0.00015075,2]
[424129314,1780606241000,-500.0,0.00015077,2]
[424129317,1780606241000,-500.0,0.00015077,2]
[424129318,1780606241000,-957.06,0.00015077,2]
[424129327,1780606241000,-500.0,0.00015077,2]
[424129301,1780606241000,-481.26630383,0.00015076,2]
[424129325,1780606241000,-500.0,0.00015077,2]
[424129323,1780606241000,-500.0,0.00015077,2]
[424129321,1780606241000,-500.0,0.00015077,2]
[424129320,1780606241000,-500.0,0.00015077,2]
[424129322,1780606241000,-500.0,0.00015077,2]
[424129315,1780606241000,-500.0,0.00015077,2]
[424129316,1780606241000,-577.59,0.00015077,2]
[424129324,1780606241000,-500.0,0.00015077,2]
[424129310,1780606241000,-1925.42,0.00015076,2]
[424129298,1780606241000,-500.0,0.00015076,2]
[424129292,1780606241000,-2275.6,0.00015076,2]
[424129297,1780606241000,-500.0,0.00015076,2]
[424129326,1780606241000,-500.0,0.00015077,2]
[424129278,1780606241000,-500.0,0.00015075,2]
[424129277,1780606241000,-460.16506468,0.00015075,2]
[424129270,1780606241000,-500.0,0.00015075,2]
[424129276,1780606241000,-517.7338015,0.00015075,2]
[424129272,1780606241000,-500.0,0.00015075,2]
[424129269,1780606241000,-500.0,0.00015075,2]
[424129271,1780606241000,-500.0,0.00015075,2]
[424129273,1780606241000,-579.67101547,0.00015075,2]
[424129274,1780606241000,-500.0,0.00015075,2]
[424129279,1780606241000,-195.47196537,0.00015075,2]
[424129284,1780606241000,-500.0,0.00015075,2]
[424129299,1780606241000,-500.0,0.00015076,2]
[424129282,1780606241000,-500.0,0.00015075,2]
[424129289,1780606241000,-500.0,0.00015076,2]
[424129285,1780606241000,-500.0,0.00015075,2]
[424129286,1780606241000,-500.0,0.00015075,2]
[424129280,1780606241000,-500.0,0.00015075,2]
[424129283,1780606241000,-500.0,0.00015075,2]
[424129288,1780606241000,-500.0,0.00015075,2]
[424129290,1780606241000,-615.98,0.00015076,2]
[424129291,1780606241000,-500.0,0.00015076,2]
[424129293,1780606241000,-517.3,0.00015076,2]
[424129294,1780606241000,-274.21019167,0.00015076,2]
[424129296,1780606241000,-2068.89,0.00015076,2]
[424129295,1780606241000,-919.78980833,0.00015076,2]
[424129281,1780606241000,-500.0,0.00015075,2]
[424129287,1780606241000,-500.0,0.00015075,2]
[424129319,1780606241000,-500.0,0.00015077,2]
[424129330,1780606241000,-500.0,0.00015077,2]
[424129362,1780606241000,-500.0,0.00015078,2]
[424129359,1780606241000,-500.0,0.00015078,2]
[424129360,1780606241000,-500.0,0.00015078,2]
[424129361,1780606241000,-500.0,0.00015078,2]
[424129364,1780606241000,-500.0,0.00015078,2]
[424129367,1780606241000,-500.0,0.00015078,2]
[424129369,1780606241000,-500.0,0.00015078,2]
[424129363,1780606241000,-500.0,0.00015078,2]
[424129365,1780606241000,-500.0,0.00015078,2]
[424129366,1780606241000,-500.0,0.00015078,2]
[424129371,1780606241000,-500.0,0.00015078,2]
[424129374,1780606241000,-500.0,0.00015078,2]
[424129370,1780606241000,-500.0,0.00015078,2]
[424129373,1780606241000,-559.71854376,0.00015078,2]
[424129376,1780606241000,-500.0,0.00015078,2]
[424129375,1780606241000,-500.0,0.00015078,2]
[424129378,1780606241000,-758.34,0.00015078,2]
[424129372,1780606241000,-500.0,0.00015078,2]
[424129383,1780606241000,-500.0,0.00015078,2]
[424129379,1780606241000,-500.0,0.00015078,2]
[424129382,1780606241000,-500.0,0.00015078,2]
[424129380,1780606241000,-500.0,0.00015078,2]
[424129381,1780606241000,-500.0,0.00015078,2]
[424129384,1780606241000,-500.0,0.00015078,2]
[424129385,1780606241000,-579.72,0.00015078,2]
[424129328,1780606241000,-500.0,0.00015077,2]
[424129377,1780606241000,-500.0,0.00015078,2]
[424129358,1780606241000,-274.75369255,0.00015078,2]
[424129331,1780606241000,-500.0,0.00015077,2]
[424129357,1780606241000,-500.0,0.00015078,2]
[424129333,1780606241000,-500.0,0.00015077,2]
[424129368,1780606241000,-500.0,0.00015078,2]
[424129332,1780606241000,-500.0,0.00015077,2]
[424129337,1780606241000,-500.0,0.00015077,2]
[424129329,1780606241000,-625.0,0.00015077,2]
[424129339,1780606241000,-500.0,0.00015077,2]
[424129336,1780606241000,-500.0,0.00015077,2]
[424129334,1780606241000,-17646.95,0.00015077,2]
[424129335,1780606241000,-500.0,0.00015077,2]
[424129340,1780606241000,-493.40543886,0.00015077,2]
[424129341,1780606241000,-500.0,0.00015077,2]
[424129343,1780606241000,-2548.79,0.00015077,2]
[424129353,1780606241000,-500.0,0.00015078,2]
[424129338,1780606241000,-500.0,0.00015077,2]
[424129344,1780606241000,-529.26,0.00015077,2]
[424129342,1780606241000,-500.0,0.00015077,2]
[424129345,1780606241000,-500.0,0.00015077,2]
[424129350,1780606241000,-500.0,0.00015078,2]
[424129349,1780606241000,-500.0,0.00015078,2]
[424129347,1780606241000,-500.0,0.00015078,2]
[424129351,1780606241000,-500.0,0.00015078,2]
[424129356,1780606241000,-500.0,0.00015078,2]
[424129348,1780606241000,-500.0,0.00015078,2]
[424129352,1780606241000,-500.0,0.00015078,2]
[424129354,1780606241000,-500.0,0.00015078,2]
[424129355,1780606241000,-500.0,0.00015078,2]
[424129346,1780606241000,-500.0,0.00015078,2]
[424129431,1780606242000,-500.0,0.00015349,2]
[424129428,1780606242000,-447.33456967,0.00015349,2]
[424129426,1780606242000,-500.0,0.00015348,2]
[424129424,1780606242000,-749.98,0.00015348,2]